fUST/lending_fUST_20260605
["ID","MTS","AMOUNT","RATE_DAILY","PERIOD"]
[424147128,1780611041000,-250.07286682,0.00015856,2]
[424147134,1780611041000,-500.0,0.0001589,2]
[424147140,1780611041000,-500.0,0.0001589,2]
[424147141,1780611041000,-500.0,0.0001589,2]
[424147144,1780611041000,-1264.1,0.0001589,2]
[424147154,1780611041000,-562.07,0.0001589,2]
[424147138,1780611041000,-500.0,0.0001589,2]
[424147131,1780611041000,-500.0,0.00015889,2]
[424147171,1780611041000,-500.0,0.00016164,2]
[424147151,1780611041000,-834.95,0.0001589,2]
[424147166,1780611041000,-500.0,0.0001589,2]
[424147165,1780611041000,-500.0,0.0001589,2]
[424147164,1780611041000,-500.0,0.0001589,2]
[424147162,1780611041000,-1268.61,0.0001589,2]
[424147161,1780611041000,-713.82,0.0001589,2]
[424147163,1780611041000,-1785.99,0.0001589,2]
[424147157,1780611041000,-1226.54,0.0001589,2]
[424147160,1780611041000,-601.78,0.0001589,2]
[424147132,1780611041000,-637.38,0.0001589,2]
[424147142,1780611041000,-500.0,0.0001589,2]
[424147155,1780611041000,-500.0,0.0001589,2]
[424147145,1780611041000,-480.64865999,0.0001589,2]
[424147285,1780611042000,-1268.61,0.00016986,2]
[424147279,1780611042000,-500.0,0.00016986,2]
[424147287,1780611042000,-1785.99,0.00016986,2]
[424147275,1780611042000,-500.0,0.00016986,2]
[424147270,1780611042000,-512.29,0.00016986,2]
[424147282,1780611042000,-601.78,0.00016986,2]
[424147263,1780611042000,-163.3553981,0.00016917,2]
[424147271,1780611042000,-1296.46,0.00016986,2]
[424147269,1780611042000,-1264.1,0.00016986,2]
[424147267,1780611042000,-500.0,0.00016986,2]
[424147265,1780611042000,-176.6468518,0.00016917,2]
[424147272,1780611042000,-834.95,0.00016986,2]
[424147266,1780611042000,-500.0,0.00016986,2]
[424147284,1780611042000,-713.82,0.00016986,2]
[424147294,1780611042000,-500.0,0.0001726,2]
[424147299,1780611042000,-861.27,0.0001726,2]
[424147273,1780611042000,-861.27,0.00016986,2]
[424147274,1780611042000,-562.07,0.00016986,2]
[424147276,1780611042000,-500.0,0.00016986,2]
[424147300,1780611042000,-562.07,0.0001726,2]
[424147277,1780611042000,-1226.54,0.00016986,2]
[424147280,1780611042000,-605.65,0.00016986,2]
[424147290,1780611042000,-160.0,0.00017176,2]
[424147292,1780611042000,-500.0,0.0001726,2]
[424147296,1780611042000,-512.29,0.0001726,2]
[424147293,1780611042000,-500.0,0.0001726,2]
[424147295,1780611042000,-1264.1,0.0001726,2]
[424147301,1780611042000,-500.0,0.0001726,2]
[424147291,1780611042000,-767.92208879,0.00017176,2]
[424147297,1780611042000,-1296.46,0.0001726,2]
[424147289,1780611042000,-187.12611121,0.00017018,2]
[424147262,1780611042000,-1785.99,0.00016712,2]
[424147211,1780611042000,-500.0,0.00016438,2]
[424147264,1780611042000,-347.7572724,0.00016917,2]
[424147298,1780611042000,-834.95,0.0001726,2]
[424147212,1780611042000,-500.0,0.00016438,2]
[424147217,1780611042000,-713.82,0.00016438,2]
[424147216,1780611042000,-601.78,0.00016438,2]
[424147214,1780611042000,-500.0,0.00016438,2]
[424147215,1780611042000,-605.65,0.00016438,2]
[424147218,1780611042000,-1268.61,0.00016438,2]
[424147219,1780611042000,-1785.99,0.00016438,2]
[424147225,1780611042000,-151.02,0.000165,2]
[424147223,1780611042000,-500.0,0.00016438,2]
[424147221,1780611042000,-500.0,0.00016438,2]
[424147220,1780611042000,-500.0,0.00016438,2]
[424147227,1780611042000,-178.15340286,0.00016617,2]
[424147213,1780611042000,-1226.54,0.00016438,2]
[424147268,1780611042000,-500.0,0.00016986,2]
[424147240,1780611042000,-834.95,0.00016712,2]
[424147244,1780611042000,-562.07,0.00016712,2]
[424147230,1780611042000,-500.0,0.00016712,2]
[424147228,1780611042000,-500.0,0.00016712,2]
[424147246,1780611042000,-500.0,0.00016712,2]
[424147248,1780611042000,-500.0,0.00016712,2]
[424147250,1780611042000,-1226.54,0.00016712,2]
[424147232,1780611042000,-500.0,0.00016712,2]
[424147238,1780611042000,-1296.46,0.00016712,2]
[424147236,1780611042000,-512.29,0.00016712,2]
[424147252,1780611042000,-500.0,0.00016712,2]
[424147254,1780611042000,-605.65,0.00016712,2]
[424147255,1780611042000,-601.78,0.00016712,2]
[424147260,1780611042000,-713.82,0.00016712,2]
[424147261,1780611042000,-1268.61,0.00016712,2]
[424147242,1780611042000,-861.27,0.00016712,2]
[424147306,1780611042000,-601.78,0.0001726,2]
[424147234,1780611042000,-1264.1,0.00016712,2]
[424147304,1780611042000,-500.0,0.0001726,2]
[424147341,1780611042000,-151.0,0.00017739,2]
[424147338,1780611042000,-1785.99,0.00017534,2]
[424147340,1780611042000,-155.47,0.00017654,2]
[424147339,1780611042000,-155.37,0.000176,2]
[424147345,1780611042000,-500.0,0.00017739,2]
[424147346,1780611042000,-316.73276992,0.00017739,2]
[424147347,1780611042000,-153.61,0.00017765,2]
[424147372,1780611042000,-562.07,0.00017808,2]
[424147348,1780611042000,-468.29029847,0.0001778,2]
[424147352,1780611042000,-348.16488436,0.0001778,2]
[424147349,1780611042000,-534.97999645,0.0001778,2]
[424147354,1780611042000,-490.0661943,0.0001779,2]
[424147358,1780611042000,-189.08302802,0.0001779,2]
[424147353,1780611042000,-273.22201632,0.0001779,2]
[424147337,1780611042000,-1268.61,0.00017534,2]
[424147356,1780611042000,-695.5145448,0.0001779,2]
[424147350,1780611042000,-235.03801368,0.0001778,2]
[424147351,1780611042000,-173.73069484,0.0001778,2]
[424147357,1780611042000,-349.13621497,0.0001779,2]
[424147362,1780611042000,-341.52380668,0.0001779,2]
[424147366,1780611042000,-166.71891545,0.0001779,2]
[424147364,1780611042000,-285.23390466,0.0001779,2]
[424147363,1780611042000,-376.30880689,0.0001779,2]
[424147360,1780611042000,-158.47312052,0.0001779,2]
[424147368,1780611042000,-512.29,0.00017808,2]
[424147365,1780611042000,-529.94055541,0.0001779,2]
[424147367,1780611042000,-1264.1,0.00017808,2]
[424147370,1780611042000,-834.95,0.00017808,2]
[424147369,1780611042000,-1296.46,0.00017808,2]
[424147302,1780611042000,-500.0,0.0001726,2]
[424147355,1780611042000,-567.66069978,0.0001779,2]
[424147333,1780611042000,-500.0,0.00017534,2]
[424147371,1780611042000,-861.27,0.00017808,2]
[424147344,1780611042000,-156.78401659,0.00017739,2]
[424147335,1780611042000,-601.78,0.00017534,2]
[424147305,1780611042000,-605.65,0.0001726,2]
[424147312,1780611042000,-234.14514923,0.00017431,2]
[424147311,1780611042000,-177.116918,0.00017382,2]
[424147309,1780611042000,-1785.99,0.0001726,2]
[424147310,1780611042000,-159.76199351,0.00017315,2]
[424147313,1780611042000,-267.48999822,0.00017431,2]
[424147307,1780611042000,-713.82,0.0001726,2]
[424147303,1780611042000,-1226.54,0.0001726,2]
[424147315,1780611042000,-283.83034989,0.00017441,2]
[424147314,1780611042000,-326.7107962,0.00017441,2]
[424147327,1780611042000,-861.27,0.00017534,2]
[424147328,1780611042000,-562.07,0.00017534,2]
[424147317,1780611042000,-170.76190334,0.00017441,2]
[424147316,1780611042000,-521.6359086,0.00017441,2]
[424147308,1780611042000,-1268.61,0.0001726,2]
[424147325,1780611042000,-1296.46,0.00017534,2]
[424147319,1780611042000,-200.0,0.00017465,2]
[424147336,1780611042000,-713.82,0.00017534,2]
[424147334,1780611042000,-605.65,0.00017534,2]
[424147331,1780611042000,-500.0,0.00017534,2]
[424147342,1780611042000,-151.0,0.00017739,2]
[424147332,1780611042000,-1226.54,0.00017534,2]
[424147324,1780611042000,-512.29,0.00017534,2]
[424147343,1780611042000,-162.380719,0.00017739,2]
[424147322,1780611042000,-591.66244053,0.00017534,2]
[424147320,1780611042000,-204.06704248,0.00017465,3]
[424147318,1780611042000,-353.2937036,0.00017441,2]
[424147321,1780611042000,-561.47,0.00017534,2]
[424147326,1780611042000,-834.95,0.00017534,2]
[424147330,1780611042000,-500.0,0.00017534,2]
[424147323,1780611042000,-1264.1,0.00017534,2]
[424147411,1780611043000,-500.0,0.00018356,2]
[424147419,1780611043000,-1837.0,0.00018399,2]
[424147416,1780611043000,-1785.99,0.00018356,2]
[424147422,1780611043000,-742.483,0.00018399,2]
[424147409,1780611043000,-494.37,0.00018356,2]
[424147410,1780611043000,-1226.54,0.00018356,2]
[424147420,1780611043000,-3630.0,0.00018399,2]
[424147404,1780611043000,-512.29,0.00018356,2]
[424147403,1780611043000,-1264.1,0.00018356,2]
[424147415,1780611043000,-1268.61,0.00018356,2]
[424147406,1780611043000,-834.95,0.00018356,2]
[424147421,1780611043000,-2206.0,0.00018399,2]
[424147407,1780611043000,-861.27,0.00018356,2]
[424147427,1780611043000,-345.124,0.00018629,2]
[424147418,1780611043000,-1415.0,0.00018399,2]
[424147412,1780611043000,-605.65,0.00018356,2]
[424147414,1780611043000,-713.82,0.00018356,2]
[424147417,1780611043000,-268.463,0.00018399,2]
[424147423,1780611043000,-202.222,0.00018399,2]
[424147425,1780611043000,-511.99341428,0.00018563,2]
[424147424,1780611043000,-444.0,0.00018399,2]
[424147428,1780611043000,-1264.1,0.0001863,2]
[424147429,1780611043000,-512.29,0.0001863,2]
[424147426,1780611043000,-150.307,0.00018629,2]
[424147430,1780611043000,-1296.46,0.0001863,2]
[424147435,1780611043000,-500.0,0.0001863,2]
[424147397,1780611043000,-1785.99,0.00018082,2]
[424147431,1780611043000,-834.95,0.0001863,2]
[424147413,1780611043000,-601.78,0.00018356,2]
[424147401,1780611043000,-155.65,0.00018293,2]
[424147396,1780611043000,-1268.61,0.00018082,2]
[424147402,1780611043000,-155.63,0.00018293,2]
[424147432,1780611043000,-861.27,0.0001863,2]
[424147373,1780611043000,-500.0,0.00017808,2]
[424147374,1780611043000,-450.21820197,0.00017808,2]
[424147376,1780611043000,-500.0,0.00017808,2]
[424147375,1780611043000,-1226.54,0.00017808,2]
[424147377,1780611043000,-605.65,0.00017808,2]
[424147378,1780611043000,-601.78,0.00017808,2]
[424147379,1780611043000,-713.82,0.00017808,2]
[424147381,1780611043000,-1785.99,0.00017808,2]
[424147380,1780611043000,-1268.61,0.00017808,2]
[424147383,1780611043000,-153.83,0.00017916,2]
[424147382,1780611043000,-823.07755281,0.0001789,2]
[424147385,1780611043000,-512.29,0.00018082,2]
[424147399,1780611043000,-869.393181,0.00018139,2]
[424147395,1780611043000,-713.82,0.00018082,2]
[424147388,1780611043000,-861.27,0.00018082,2]
[424147387,1780611043000,-834.95,0.00018082,2]
[424147386,1780611043000,-1296.46,0.00018082,2]
[424147394,1780611043000,-601.78,0.00018082,2]
[424147393,1780611043000,-605.65,0.00018082,2]
[424147392,1780611043000,-500.0,0.00018082,2]
[424147390,1780611043000,-500.0,0.00018082,2]
[424147389,1780611043000,-562.07,0.00018082,2]
[424147391,1780611043000,-1226.54,0.00018082,2]
[424147398,1780611043000,-155.26,0.00018101,2]
[424147408,1780611043000,-562.07,0.00018356,2]
[424147405,1780611043000,-1296.46,0.00018356,2]
[424147400,1780611043000,-500.0,0.00018287,2]
[424147384,1780611043000,-1264.1,0.00018082,2]
[424147434,1780611043000,-1226.54,0.0001863,2]
[424147452,1780611043000,-1226.54,0.00018904,2]
[424147448,1780611043000,-1296.46,0.00018904,2]
[424147473,1780611043000,-605.65,0.00019178,2]
[424147470,1780611043000,-562.07,0.00019178,2]
[424147467,1780611043000,-1296.46,0.00019178,2]
[424147472,1780611043000,-254.8794494,0.00019178,2]
[424147471,1780611043000,-1226.54,0.00019178,2]
[424147475,1780611043000,-713.82,0.00019178,2]
[424147477,1780611043000,-1785.99,0.00019178,2]
[424147478,1780611043000,-151.0,0.00019178,2]
[424147480,1780611043000,-151.0,0.00019178,2]
[424147479,1780611043000,-151.0,0.00019178,2]
[424147485,1780611043000,-1824.81,0.00019178,2]
[424147484,1780611043000,-151.0,0.00019178,2]
[424147481,1780611043000,-151.0,0.00019178,2]
[424147469,1780611043000,-861.27,0.00019178,2]
[424147433,1780611043000,-562.07,0.0001863,2]
[424147486,1780611043000,-151.0,0.0001919,2]
[424147483,1780611043000,-151.0,0.00019178,2]
[424147482,1780611043000,-151.0,0.00019178,2]
[424147489,1780611043000,-151.0,0.00019232,2]
[424147490,1780611043000,-326.1753558,0.00019232,2]
[424147492,1780611043000,-151.0,0.0001935,2]
[424147491,1780611043000,-511.99341428,0.00019311,2]
[424147488,1780611043000,-151.0,0.00019191,2]
[424147493,1780611043000,-151.0,0.0001935,2]
[424147494,1780611043000,-151.0,0.0001935,2]
[424147496,1780611043000,-151.0,0.0001935,2]
[424147495,1780611043000,-151.0,0.0001935,2]
[424147497,1780611043000,-292.464,0.0001935,2]
[424147487,1780611043000,-151.0,0.0001919,2]
[424147468,1780611043000,-834.95,0.00019178,2]
[424147476,1780611043000,-1268.61,0.00019178,2]
[424147465,1780611043000,-1264.1,0.00019178,2]
[424147466,1780611043000,-512.29,0.00019178,2]
[424147440,1780611043000,-1785.99,0.0001863,2]
[424147446,1780611043000,-1264.1,0.00018904,2]
[424147442,1780611043000,-1043.2718172,0.00018662,2]
[424147441,1780611043000,-1824.81,0.0001863,2]
[424147447,1780611043000,-512.29,0.00018904,2]
[424147437,1780611043000,-601.78,0.0001863,2]
[424147438,1780611043000,-713.82,0.0001863,2]
[424147443,1780611043000,-151.02,0.000188,2]
[424147445,1780611043000,-159.76199351,0.000189,2]
[424147449,1780611043000,-834.95,0.00018904,2]
[424147439,1780611043000,-1268.61,0.0001863,2]
[424147444,1780611043000,-500.0,0.00018835,2]
[424147450,1780611043000,-861.27,0.00018904,2]
[424147436,1780611043000,-605.65,0.0001863,2]
[424147455,1780611043000,-601.78,0.00018904,2]
[424147463,1780611043000,-178.15340286,0.00019078,2]
[424147474,1780611043000,-601.78,0.00019178,2]
[424147464,1780611043000,-300.0,0.00019178,2]
[424147462,1780611043000,-151.0,0.00019,2]
[424147460,1780611043000,-255.99670714,0.00018993,2]
[424147459,1780611043000,-1824.81,0.00018904,2]
[424147461,1780611043000,-156097.7211443,0.00019,2]
[424147454,1780611043000,-605.65,0.00018904,2]
[424147456,1780611043000,-713.82,0.00018904,2]
[424147457,1780611043000,-1268.61,0.00018904,2]
[424147458,1780611043000,-1785.99,0.00018904,2]
[424147453,1780611043000,-500.0,0.00018904,2]
[424147451,1780611043000,-562.07,0.00018904,2]
[424147525,1780611044000,-17419.4888671,0.00019454,2]
[424147529,1780611044000,-481.6421156,0.00019454,2]
[424147527,1780611044000,-1288.2754128,0.00019454,2]
[424147523,1780611044000,-1824.81,0.00019452,2]
[424147531,1780611044000,-12294.8307585,0.00019454,2]
[424147537,1780611044000,-443.7013024,0.00019523,2]
[424147541,1780611044000,-496.55951063,0.00019523,2]
[424147547,1780611044000,-151.0,0.00019559,2]
[424147535,1780611044000,-246.50072355,0.00019523,2]
[424147539,1780611044000,-275.8663948,0.00019523,2]
[424147543,1780611044000,-506.24618707,0.00019523,2]
[424147545,1780611044000,-283.47893565,0.00019523,2]
[424147549,1780611044000,-151.6987,0.00019559,2]
[424147521,1780611044000,-1785.99,0.00019452,2]
[424147533,1780611044000,-985.37274378,0.00019458,2]
[424147513,1780611044000,-605.65,0.00019452,2]
[424147501,1780611044000,-454.636006,0.00019387,2]
[424147511,1780611044000,-1226.54,0.00019452,2]
[424147556,1780611044000,-151.0,0.00019559,2]
[424147498,1780611044000,-151.0,0.0001935,2]
[424147499,1780611044000,-151.0,0.0001935,2]
[424147500,1780611044000,-160.0,0.00019387,2]
[424147504,1780611044000,-1264.1,0.00019452,2]
[424147502,1780611044000,-749.272012,0.00019387,2]
[424147519,1780611044000,-1268.61,0.00019452,2]
[424147503,1780611044000,-1221.00531074,0.00019448,2]
[424147507,1780611044000,-834.95,0.00019452,2]
[424147505,1780611044000,-512.29,0.00019452,2]
[424147506,1780611044000,-1296.46,0.00019452,2]
[424147510,1780611044000,-562.07,0.00019452,2]
[424147517,1780611044000,-713.82,0.00019452,2]
[424147515,1780611044000,-601.78,0.00019452,2]
[424147508,1780611044000,-861.27,0.00019452,2]
[424147554,1780611044000,-151.0,0.00019559,2]
[424147559,1780611044000,-300.0,0.00019589,3]
[424147558,1780611044000,-762814.8355,0.00019587,2]
[424147575,1780611044000,-151.0,0.000198,2]
[424147578,1780611044000,-151.0,0.000198,2]
[424147579,1780611044000,-5118.08543982,0.000199,2]
[424147580,1780611044000,-4852.0482966,0.00019978,2]
[424147581,1780611044000,-10542.3200093,0.0002,2]
[424147577,1780611044000,-151.0,0.000198,2]
[424147574,1780611044000,-151.0,0.000198,2]
[424147582,1780611044000,-1010.0,0.0002,6]
[424147584,1780611044000,-201282.99792282,0.0002,2]
[424147586,1780611044000,-402.08061937,0.00016712,2]
[424147585,1780611044000,-6361.73702708,0.0002,2]
[424147587,1780611044000,-97.91938063,0.00016712,2]
[424147589,1780611044000,-338.71835677,0.0001726,2]
[424147557,1780611044000,-151.0,0.00019569,2]
[424147583,1780611044000,-47398.64270729,0.0002,2]
[424147572,1780611044000,-1785.99,0.00019726,2]
[424147571,1780611044000,-1268.61,0.00019726,2]
[424147564,1780611044000,-834.95,0.00019726,2]
[424147570,1780611044000,-713.82,0.00019726,2]
[424147576,1780611044000,-151.0,0.000198,2]
[424147567,1780611044000,-1226.54,0.00019726,2]
[424147569,1780611044000,-601.78,0.00019726,2]
[424147568,1780611044000,-605.65,0.00019726,2]
[424147565,1780611044000,-861.27,0.00019726,2]
[424147566,1780611044000,-562.07,0.00019726,2]
[424147553,1780611044000,-151.0,0.00019559,2]
[424147573,1780611044000,-1824.81,0.00019726,2]
[424147563,1780611044000,-1296.46,0.00019726,2]
[424147551,1780611044000,-151.0,0.00019559,2]
[424147562,1780611044000,-512.29,0.00019726,2]
[424147561,1780611044000,-1264.1,0.00019726,2]
[424147560,1780611044000,-160.0,0.00019698,3]
[424147588,1780611044000,-500.0,0.00016986,2]
[424147595,1780611046000,-3009.95592686,0.00014216,2]
[424147593,1780611046000,-500.0,0.00013698,2]
[424147594,1780611046000,-335.13,0.00013972,2]
[424147596,1780611046000,-1990.04407314,0.00014216,2]
[424147597,1780611046000,-161.28164323,0.0001726,2]
[424147600,1780611046000,-2704.78655443,0.0002,2]
[424147598,1780611046000,-500.0,0.00017534,2]
[424147599,1780611046000,-413.56,0.00017808,2]
[424147651,1780611420000,156.0,0.00023287,120]
[424147663,1780611728000,942.55528007,7.6e-05,2]
[424147689,1780612232000,-4500.623,0.00010894,2]
[424147690,1780612232000,-5000.0,0.00011004,2]
[424147694,1780612232000,-1200.0,0.0001169,2]
[424147692,1780612232000,-151.0,0.00011227,2]
[424147696,1780612232000,-1888.9341408,0.00012169,2]
[424147693,1780612232000,-300.0,0.0001169,2]
[424147695,1780612232000,-209.93245296,0.00012115,2]
[424147698,1780612232000,-966.51143442,0.00012169,2]
[424147691,1780612232000,-1217.77023,0.00011115,2]
[424147865,1780612238000,-500.0,0.00013698,2]
[424147833,1780612238000,-224.15523285,0.00013461,2]
[424147841,1780612238000,-500.0,0.00013698,2]
[424147855,1780612238000,-500.0,0.00013698,2]
[424147852,1780612238000,-500.0,0.00013698,2]
[424147854,1780612238000,-500.0,0.00013698,2]
[424147896,1780612238000,-500.0,0.00013971,2]
[424147898,1780612238000,-500.0,0.00013971,2]
[424147867,1780612238000,-500.0,0.00013698,2]
[424147880,1780612238000,-500.0,0.00013971,2]
[424147892,1780612238000,-500.0,0.00013971,2]
[424147886,1780612238000,-500.0,0.00013971,2]
[424147863,1780612238000,-500.0,0.00013698,2]
[424147843,1780612238000,-500.0,0.00013698,2]
[424147859,1780612238000,-500.0,0.00013698,2]
[424147857,1780612238000,-500.0,0.00013698,2]
[424147848,1780612238000,-500.0,0.00013698,2]
[424147835,1780612238000,-500.0,0.00013698,2]
[424147831,1780612238000,-177.116918,0.00013451,2]
[424147902,1780612238000,-515.67601465,0.00013971,2]
[424147877,1780612238000,-500.0,0.00013971,2]
[424147837,1780612238000,-500.0,0.00013698,2]
[424147891,1780612238000,-500.0,0.00013971,2]
[424147871,1780612238000,-355.224985,0.00013699,2]
[424147894,1780612238000,-500.0,0.00013971,2]
[424147879,1780612238000,-500.0,0.00013971,2]
[424147873,1780612238000,-600.0,0.00013971,2]
[424147846,1780612238000,-500.0,0.00013698,2]
[424147904,1780612238000,-500.0,0.00013971,2]
[424147900,1780612238000,-500.0,0.00013971,2]
[424147869,1780612238000,-1000.0,0.00013699,2]
[424147889,1780612238000,-500.0,0.00013971,2]
[424147850,1780612238000,-518.01980178,0.00013698,2]
[424147844,1780612238000,-500.0,0.00013698,2]
[424147884,1780612238000,-500.0,0.00013971,2]
[424147882,1780612238000,-500.0,0.00013971,2]
[424147861,1780612238000,-500.0,0.00013698,2]
[424147874,1780612238000,-500.0,0.00013971,2]
[424147839,1780612238000,-500.0,0.00013698,2]
[424147827,1780612238000,-5000.0,0.00012047,2]
[424147829,1780612238000,-3806.05652758,0.00012169,2]
[424147982,1780612239000,-163.56563977,0.00014519,2]
[424147953,1780612239000,-500.0,0.00014245,2]
[424147922,1780612239000,-335.13,0.00013972,2]
[424147959,1780612239000,-500.0,0.00014245,2]
[424147987,1780612239000,-500.0,0.0001452,2]
[424147963,1780612239000,-297.85281014,0.00014245,2]
[424147924,1780612239000,-361.31729941,0.00013972,2]
[424147997,1780612239000,-264.31,0.00014794,2]
[424147989,1780612239000,-623.4691347,0.00014793,2]
[424148020,1780612239000,-160.0,0.00018148,2]
[424147916,1780612239000,-500.0,0.00013972,2]
[424147993,1780612239000,-226.59,0.00014794,2]
[424148006,1780612239000,-720.0,0.00015368,2]
[424147995,1780612239000,-500.0,0.00014794,2]
[424147906,1780612239000,-500.0,0.00013971,2]
[424147960,1780612239000,-500.0,0.00014245,2]
[424147951,1780612239000,-500.0,0.00014245,2]
[424148014,1780612239000,-160.0,0.00017585,2]
[424148041,1780612239000,-300.0,0.00019178,2]
[424148018,1780612239000,-268.61832167,0.00017807,2]
[424147930,1780612239000,-500.0,0.00013972,2]
[424147957,1780612239000,-500.0,0.00014245,2]
[424147944,1780612239000,-500.0,0.00013972,2]
[424148010,1780612239000,-156.0,0.00017148,2]
[424148024,1780612239000,-1000.0,0.00018595,2]
[424147968,1780612239000,-500.0,0.00014245,2]
[424147912,1780612239000,-500.0,0.00013971,2]
[424147934,1780612239000,-500.0,0.00013972,2]
[424147946,1780612239000,-500.0,0.00013972,2]
[424147973,1780612239000,-500.0,0.00014246,2]
[424148012,1780612239000,-767.92208879,0.00017585,2]
[424148032,1780612239000,-363.33463337,0.00018999,2]
[424147908,1780612239000,-500.0,0.00013971,2]
[424147926,1780612239000,-648.86,0.00013972,2]
[424147918,1780612239000,-500.0,0.00013972,2]
[424147975,1780612239000,-229.9,0.00014246,2]
[424147999,1780612239000,-400.49069624,0.00014818,2]
[424147970,1780612239000,-500.0,0.00014245,2]
[424147928,1780612239000,-500.0,0.00013972,2]
[424147985,1780612239000,-500.0,0.0001452,2]
[424148004,1780612239000,-170.061425,0.00015068,2]
[424147914,1780612239000,-222.5683597,0.00013971,2]
[424147964,1780612239000,-500.0,0.00014245,2]
[424147971,1780612239000,-500.0,0.00014246,2]
[424147986,1780612239000,-500.0,0.0001452,2]
[424148001,1780612239000,-887.0,0.00015,6]
[424147938,1780612239000,-500.0,0.00013972,2]
[424147961,1780612239000,-500.0,0.00014245,2]
[424148022,1780612239000,-276.099,0.00018356,2]
[424147969,1780612239000,-500.0,0.00014245,2]
[424148043,1780612239000,-1216.54,0.00019178,2]
[424147978,1780612239000,-296.55631839,0.00014246,2]
[424147979,1780612239000,-237.88,0.00014246,2]
[424147984,1780612239000,-500.0,0.0001452,2]
[424148016,1780612239000,-178.15340286,0.0001765,2]
[424148026,1780612239000,-1216.54,0.0001863,2]
[424148035,1780612239000,-2206.0,0.00019029,2]
[424148080,1780612239000,-497.92914224,0.0002,2]
[424148077,1780612239000,-755700.60854266,0.0002,2]
[424148053,1780612239000,-1216.54,0.00019452,2]
[424148076,1780612239000,-270.93,0.0002,14]
[424148056,1780612239000,-1324.2075737,0.0001954,2]
[424147976,1780612239000,-500.0,0.00014246,2]
[424147977,1780612239000,-500.0,0.00014246,2]
[424148066,1780612239000,-881.88969089,0.00019726,2]
[424148060,1780612239000,-300.0,0.00019589,3]
[424148064,1780612239000,-788.01351305,0.00019726,2]
[424148072,1780612239000,-4606.27689582,0.000199,2]
[424148070,1780612239000,-1216.54,0.00019726,2]
[424148049,1780612239000,-456.7342983,0.00019191,2]
[424148058,1780612239000,-3734.790069,0.0001954,2]
[424148062,1780612239000,-180973.5926,0.00019616,2]
[424148074,1780612239000,-304741.66681937,0.0002,2]
[424148068,1780612239000,-323.65195053,0.00019726,2]
[424148054,1780612239000,-9281.7870641,0.0001954,2]
[424147972,1780612239000,-460.12,0.00014246,2]
[424148051,1780612239000,-326.3532857,0.00019232,2]
[424147965,1780612239000,-500.0,0.00014245,2]
[424147981,1780612239000,-500.0,0.00014519,2]
[424147983,1780612239000,-500.0,0.00014519,2]
[424147991,1780612239000,-268.68,0.00014794,2]
[424148028,1780612239000,-1216.54,0.00018904,2]
[424148038,1780612239000,-185.0,0.00019029,2]
[424147932,1780612239000,-500.0,0.00013972,2]
[424147955,1780612239000,-500.0,0.00014245,2]
[424147949,1780612239000,-500.0,0.00014245,2]
[424147974,1780612239000,-500.0,0.00014246,2]
[424147920,1780612239000,-500.0,0.00013972,2]
[424147936,1780612239000,-500.0,0.00013972,2]
[424147967,1780612239000,-500.0,0.00014245,2]